[Event "80th ARM-ch 1st League 2019"]
[Site "Yerevan"]
[Date "2019.08.22"]
[Round "5.1"]
[White "Gharibyan, Mamikon"]
[Black "Chaqryan, Erik"]
[Result "1-0"]
[ECO "B52"]
[WhiteElo "2365"]
[BlackElo "2105"]
[Annotator "NA"]
[PlyCount "147"]
[EventDate "2019.08.18"]
[EventType "tourn"]
[EventCountry "ARM"]
[SourceTitle "playchess.com"]
[Source "ChessBase"]
[SourceQuality "1"]
[TimeControl "40/5400+30:1800+30"]

1. e4 {[%emt 0:00:00]} c5 {[%emt 0:00:35]} 2. Nf3 {[%emt 0:02:49]} d6 {[%emt 0:00:29]} 3. Bb5+ {[%emt 0:05:58]} Bd7 {[%emt 0:03:34]} 4. a4 {[%emt 0:02:12]} Nc6 {[%emt 0:02:33]} 5. O-O {[%emt 0:01:46]} g6 {[%emt 0:05:19]} 6. Re1 {[%emt 0:04:30]} Bg7 {[%emt 0:03:34]} 7. c3 {[%emt 0:02:14]} Nf6 {[%emt 0:02:13]} 8. h3 {[%emt 0:03:44]} O-O {[%emt 0:03:39]} 9. d4 {[%emt 0:01:25]} cxd4 {[%emt 0:03:22]} 10. cxd4 {[%emt 0:00:41]} a6 {[%emt 0:02:59]} 11. Bf1 {[%emt 0:02:48]} d5 {[%emt 0:12:01]} 12. e5 {[%emt 0:00:45]} Ne4 {[%emt 0:00:08]} 13. Nc3 {[%emt 0:01:59]} Bf5 {[%emt 0:00:45]} 14. Qb3 {[%emt 0:03:36]} Be6 {[%emt 0:14:54]} 15. Bf4 {[%emt 0:09:38]} h6 {[%emt 0:17:19]} 16. Rad1 {[%emt 0:06:14]} Na5 {[%emt 0:02:47]} 17. Qb4 {[%emt 0:01:51]} Nxc3 {[%emt 0:01:14]} 18. bxc3 {[%emt 0:01:00]} Rc8 {[%emt 0:01:15]} 19. Bd3 {[%emt 0:01:41]} Rc6 {[%emt 0:01:44]} 20. Rb1 {[%emt 0:18:57]} Qc7 {[%emt 0:00:30]} 21. Rec1 {[%emt 0:00:51]} Rc8 {[%emt 0:05:15]} 22. Bd2 {[%emt 0:00:30]} Bf5 {[%emt 0:00:58]} 23. Bxf5 {[%emt 0:00:51]} gxf5 {[%emt 0:00:01]} 24. Qb2 {[%emt 0:03:34]} Rc4 {[%emt 0:02:30]} 25. e6 {[%emt 0:02:50]} fxe6 {[%emt 0:00:56]} 26. Re1 {[%emt 0:01:25]} Rc6 {[%emt 0:01:16]} 27. Qc1 {[%emt 0:02:56]} Kh7 {[%emt 0:01:24]} 28. Bf4 {[%emt 0:05:30]} Qd7 {[%emt 0:01:13]} 29. Rb2 {[%emt 0:04:41]} Rxc3 {[%emt 0:04:30]} 30. Qb1 {[%emt 0:00:05]} Rxf3 {[%emt 0:02:06]} 31. gxf3 {[%emt 0:00:06]} Bxd4 {[%emt 0:01:17]} 32. Rbe2 {[%emt 0:00:41]} Rc6 {[%emt 0:00:34]} 33. Kh2 {[%emt 0:00:51]} Kg8 {[%emt 0:02:45]} 34. Rg1+ {[%emt 0:02:06]} Kf7 {[%emt 0:00:04]} 35. Qf1 {[%emt 0:00:38]} Qc8 {[%emt 0:00:54]} 36. Bxh6 {[%emt 0:02:11]} Qc7+ {[%emt 0:00:43]} 37. Kh1 {[%emt 0:01:24]} Ke8 {[%emt 0:00:20]} 38. Qg2 {[%emt 0:01:00]} Kd7 {[%emt 0:00:13]} 39. h4 {[%emt 0:01:20]} Qd6 {[%emt 0:00:54]} 40. f4 {[%emt 0:00:00]} Rc8 {[%emt 0:00:00]} 41. Rge1 {[%emt 0:05:24]} Bc3 {[%emt 0:18:47]} 42. Rxe6 {[%emt 0:02:04]} Qxe6 {[%emt 0:01:30]} 43. Rxe6 {[%emt 0:00:06]} Kxe6 {[%emt 0:00:02]} 44. Qf3 {[%emt 0:02:53]} Bd4 {[%emt 0:08:39]} 45. Qe2+ {[%emt 0:04:24]} Kd6 {[%emt 0:00:15]} 46. Kg2 {[%emt 0:00:44]} Bh8 {[%emt 0:01:17]} 47. Qd3 {[%emt 0:03:01]} Nc6 {[%emt 0:02:43]} 48. Qxf5 {[%emt 0:00:48]} Rg8+ {[%emt 0:00:40]} 49. Bg5 {[%emt 0:01:36]} Bc3 {[%emt 0:00:16]} 50. h5 {[%emt 0:01:28]} b5 {[%emt 0:00:25]} 51. axb5 {[%emt 0:01:20]} axb5 {[%emt 0:00:01]} 52. Qf7 {[%emt 0:01:39]} Rh8 {[%emt 0:01:25]} 53. f5 {[%emt 0:03:32]} b4 {[%emt 0:01:07]} 54. f6 {[%emt 0:05:53]} b3 {[%emt 0:00:22]} 55. Bf4+ {[%emt 0:03:01]} Kc5 {[%emt 0:00:35]} 56. Be3+ {[%emt 0:00:28]} Kc4 {[%emt 0:00:36]} 57. fxe7 {[%emt 0:00:23]} b2 {[%emt 0:00:25]} 58. e8=Q {[%emt 0:01:06]} Rxe8 {[%emt 0:00:05]} 59. Qxe8 {[%emt 0:00:03]} Nb4 {[%emt 0:00:50]} 60. Qg6 {[%emt 0:00:01]} Kb3 {[%emt 0:00:35]} 61. Qb1 {[%emt 0:00:30]} Nc2 {[%emt 0:00:31]} 62. Bc1 {[%emt 0:01:09]} Na3 {[%emt 0:00:17]} 63. Qxb2+ {[%emt 0:00:13]} Bxb2 {[%emt 0:00:05]} 64. Bxb2 {[%emt 0:00:01]} Kxb2 {[%emt 0:00:08]} 65. h6 {[%emt 0:00:04]} d4 {[%emt 0:00:08]} 66. h7 {[%emt 0:00:03]} d3 {[%emt 0:00:16]} 67. h8=Q+ {[%emt 0:00:04]} Kc2 {[%emt 0:00:20]} 68. Qc8+ {[%emt 0:00:28]} Kb2 {[%emt 0:00:41]} 69. Qd7 {[%emt 0:00:36]} Kc3 {[%emt 0:00:17]} 70. Qc6+ {[%emt 0:00:46]} Nc4 {[%emt 0:00:11]} 71. Kf1 {[%emt 0:00:34]} Kd4 {[%emt 0:00:50]} 72. Ke1 {[%emt 0:00:32]} Ne5 {[%emt 0:00:47]} 73. Qd6+ {[%emt 0:00:04]} Ke4 {[%emt 0:00:04]} 74. Qc5 {[%emt 0:00:31]} 1-0

[Event "80th ARM-ch 1st League 2019"]
[Site "Yerevan"]
[Date "2019.08.22"]
[Round "5.2"]
[White "Hayrapetyan, Hovik"]
[Black "Hoghmrtsyan, Artur"]
[Result "1/2-1/2"]
[ECO "D58"]
[WhiteElo "2453"]
[BlackElo "2317"]
[Annotator "ChessBase"]
[PlyCount "87"]
[EventDate "2019.08.18"]
[EventType "tourn"]
[EventCountry "ARM"]
[SourceTitle "playchess.com"]
[Source "ChessBase"]
[SourceQuality "1"]
[TimeControl "40/5400+30:1800+30"]

1. Nf3 {[%emt 0:00:00]} Nf6 {[%emt 0:00:00]} 2. c4 {[%emt 0:00:00]} e6 {[%emt 0:00:00]} 3. d4 {[%emt 0:00:49]} d5 {[%emt 0:00:00]} 4. Nc3 {[%emt 0:00:06]} Be7 {[%emt 0:00:02]} 5. Bg5 {[%emt 0:03:35]} h6 {[%emt 0:00:20]} 6. Bh4 {[%emt 0:00:16]} O-O {[%emt 0:00:08]} 7. e3 {[%emt 0:00:09]} b6 {[%emt 0:00:22]} 8. cxd5 {[%emt 0:04:49]} exd5 {[%emt 0:02:45]} 9. Bd3 {[%emt 0:00:27]} Bb7 {[%emt 0:01:06]} 10. Qc2 {[%emt 0:07:44]} c5 {[%emt 0:05:21]} 11. Rd1 {[%emt 0:09:04]} Nbd7 {[%emt 0:17:01]} 12. O-O {[%emt 0:00:09]} a6 {[%emt 0:09:06]} 13. Bf5 {[%emt 0:07:12]} Re8 {[%emt 0:06:05]} 14. Ne5 {[%emt 0:14:39]} Nf8 {[%emt 0:03:04]} 15. f4 {[%emt 0:03:39]} Qc7 {[%emt 0:04:00]} 16. Rd2 {[%emt 0:07:27]} b5 {[%emt 0:10:19]} 17. Bxf6 {[%emt 0:09:44]} Bxf6 {[%emt 0:00:22]} 18. Ng4 {[%emt 0:00:08]} Be7 {[%emt 0:04:36]} 19. dxc5 {[%emt 0:00:27]} h5 {[%emt 0:05:01]} 20. Nf2 {[%emt 0:09:08]} Qxc5 {[%emt 0:04:34]} 21. Nxd5 {[%emt 0:01:47]} Bxd5 {[%emt 0:00:15]} 22. Qxc5 {[%emt 0:00:02]} Bxc5 {[%emt 0:00:06]} 23. Rxd5 {[%emt 0:00:02]} Bxe3 {[%emt 0:00:07]} 24. g3 {[%emt 0:00:04]} g6 {[%emt 0:00:27]} 25. Bh3 {[%emt 0:02:45]} Bb6 {[%emt 0:02:01]} 26. Rd6 {[%emt 0:02:14]} Rab8 {[%emt 0:00:26]} 27. Rd2 {[%emt 0:04:16]} a5 {[%emt 0:07:34]} 28. Rfd1 {[%emt 0:00:22]} Re7 {[%emt 0:03:47]} 29. Kf1 {[%emt 0:01:10]} Rbe8 {[%emt 0:10:18]} 30. Nd3 {[%emt 0:01:29]} Bd4 {[%emt 0:01:36]} 31. Ne1 {[%emt 0:00:59]} Bf6 {[%emt 0:00:26]} 32. Nf3 {[%emt 0:00:56]} b4 {[%emt 0:00:35]} 33. Nd4 {[%emt 0:00:18]} Rc7 {[%emt 0:01:49]} 34. Nb5 {[%emt 0:00:36]} Rc5 {[%emt 0:00:26]} 35. Nd6 {[%emt 0:00:10]} Re7 {[%emt 0:00:15]} 36. Bg2 {[%emt 0:00:15]} Bg7 {[%emt 0:00:25]} 37. Bd5 {[%emt 0:05:52]} Nh7 {[%emt 0:00:55]} 38. Bb3 {[%emt 0:02:42]} Nf6 {[%emt 0:00:12]} 39. Re2 {[%emt 0:02:06]} Rd7 {[%emt 0:00:51]} 40. Rdd2 {[%emt 0:00:00]} Rcc7 {[%emt 0:00:00]} 41. Re5 {[%emt 0:15:22]} Bf8 {[%emt 0:05:05]} 42. Nc4 {[%emt 0:06:50]} Rxc4 {[%emt 0:00:49]} 43. Rxd7 {[%emt 0:00:03]} Nxd7 {[%emt 0:00:05]} 44. Bxc4 {[%emt 0:00:04]} 1/2-1/2

[Event "80th ARM-ch 1st League 2019"]
[Site "Yerevan"]
[Date "2019.08.22"]
[Round "5.3"]
[White "Khojayan, Vardan"]
[Black "Sargsyan, Shant"]
[Result "0-1"]
[ECO "A05"]
[WhiteElo "2236"]
[BlackElo "2540"]
[Annotator "ChessBase"]
[PlyCount "70"]
[EventDate "2019.08.18"]
[EventType "tourn"]
[EventCountry "ARM"]
[SourceTitle "playchess.com"]
[Source "ChessBase"]
[SourceQuality "1"]
[TimeControl "40/5400+30:1800+30"]

1. Nf3 {[%emt 0:00:00]} Nf6 {[%emt 0:00:59]} 2. g3 {[%emt 0:01:30]} g6 {[%emt 0:00:35]} 3. Bg2 {[%emt 0:00:11]} Bg7 {[%emt 0:00:23]} 4. O-O {[%emt 0:01:13]} O-O {[%emt 0:01:55]} 5. c4 {[%emt 0:01:21]} d6 {[%emt 0:00:28]} 6. Nc3 {[%emt 0:00:40]} e5 {[%emt 0:01:27]} 7. d3 {[%emt 0:00:33]} Nc6 {[%emt 0:01:59]} 8. Rb1 {[%emt 0:00:29]} a5 {[%emt 0:01:52]} 9. a3 {[%emt 0:00:31]} Bg4 {[%emt 0:07:45]} 10. h3 {[%emt 0:03:50]} Bf5 {[%emt 0:01:48]} 11. e4 {[%emt 0:18:13]} Be6 {[%emt 0:02:25]} 12. b4 {[%emt 0:05:08]} axb4 {[%emt 0:00:09]} 13. axb4 {[%emt 0:00:04]} h6 {[%emt 0:01:23]} 14. Nd5 {[%emt 0:01:57]} Nd7 {[%emt 0:01:25]} 15. Be3 {[%emt 0:05:09]} Kh7 {[%emt 0:02:58]} 16. Qc1 {[%emt 0:17:50]} f5 {[%emt 0:07:48]} 17. b5 {[%emt 0:07:34]} fxe4 {[%emt 0:07:46]} 18. Ng5+ {[%emt 0:07:33]} hxg5 {[%emt 0:01:36]} 19. bxc6 {[%emt 0:00:17]} bxc6 {[%emt 0:02:01]} 20. Nb4 {[%emt 0:00:45]} c5 {[%emt 0:04:26]} 21. Bxg5 {[%emt 0:08:52]} Qe8 {[%emt 0:01:45]} 22. Nd5 {[%emt 0:01:07]} Bxd5 {[%emt 0:00:37]} 23. cxd5 {[%emt 0:00:04]} exd3 {[%emt 0:00:05]} 24. Qc4 {[%emt 0:02:05]} e4 {[%emt 0:01:31]} 25. Rfe1 {[%emt 0:03:57]} Bd4 {[%emt 0:10:02]} 26. Rxe4 {[%emt 0:03:03]} Ne5 {[%emt 0:00:28]} 27. Qc1 {[%emt 0:00:05]} Ra2 {[%emt 0:01:16]} 28. Be3 {[%emt 0:01:40]} Rc2 {[%emt 0:02:59]} 29. Qe1 {[%emt 0:02:06]} Bxe3 {[%emt 0:01:40]} 30. Qxe3 {[%emt 0:00:08]} Rfxf2 {[%emt 0:00:25]} 31. Bh1 {[%emt 0:01:07]} Kg7 {[%emt 0:08:18]} 32. Qxd3 {[%emt 0:00:53]} Qf7 {[%emt 0:05:19]} 33. Qe3 {[%emt 0:01:06]} Qxd5 {[%emt 0:01:20]} 34. Rf4 {[%emt 0:02:31]} Rg2+ {[%emt 0:00:24]} 35. Kf1 {[%emt 0:00:04]} Qa2 {[%emt 0:06:25]} 0-1

[Event "80th ARM-ch 1st League 2019"]
[Site "Yerevan"]
[Date "2019.08.22"]
[Round "5.4"]
[White "Mikaelyan, Arman"]
[Black "Harutjunyan, Gevorg"]
[Result "1/2-1/2"]
[ECO "B13"]
[WhiteElo "2454"]
[BlackElo "2455"]
[Annotator "ChessBase"]
[PlyCount "50"]
[EventDate "2019.08.18"]
[EventType "tourn"]
[EventCountry "ARM"]
[SourceTitle "playchess.com"]
[Source "ChessBase"]
[SourceQuality "1"]
[TimeControl "40/5400+30:1800+30"]

1. e4 {[%emt 0:04:07]} c6 {[%emt 0:00:34]} 2. d4 {[%emt 0:00:48]} d5 {[%emt 0:00:13]} 3. exd5 {[%emt 0:00:12]} cxd5 {[%emt 0:00:06]} 4. Bd3 {[%emt 0:00:05]} Nc6 {[%emt 0:00:32]} 5. c3 {[%emt 0:00:08]} Qc7 {[%emt 0:00:23]} 6. Ne2 {[%emt 0:01:21]} e5 {[%emt 0:00:05]} 7. dxe5 {[%emt 0:00:20]} Nxe5 {[%emt 0:00:03]} 8. Bb5+ {[%emt 0:07:34]} Bd7 {[%emt 0:00:18]} 9. Bxd7+ {[%emt 0:00:16]} Qxd7 {[%emt 0:00:06]} 10. O-O {[%emt 0:00:09]} Nf6 {[%emt 0:00:18]} 11. Bf4 {[%emt 0:07:16]} Bd6 {[%emt 0:01:23]} 12. Nd2 {[%emt 0:04:28]} O-O {[%emt 0:18:06]} 13. Nd4 {[%emt 0:00:28]} Rfe8 {[%emt 0:00:43]} 14. N2f3 {[%emt 0:10:09]} Nc4 {[%emt 0:03:28]} 15. Bxd6 {[%emt 0:00:51]} Qxd6 {[%emt 0:00:43]} 16. Qc2 {[%emt 0:03:02]} Rac8 {[%emt 0:05:30]} 17. Rfe1 {[%emt 0:02:33]} Qb6 {[%emt 0:07:23]} 18. Nf5 {[%emt 0:06:55]} Ne4 {[%emt 0:03:45]} 19. Re2 {[%emt 0:01:26]} Qf6 {[%emt 0:08:21]} 20. N3d4 {[%emt 0:16:31]} g6 {[%emt 0:06:28]} 21. Ng3 {[%emt 0:06:38]} Nc5 {[%emt 0:09:16]} 22. Rae1 {[%emt 0:02:19]} Rxe2 {[%emt 0:02:09]} 23. Qxe2 {[%emt 0:04:37]} Ne6 {[%emt 0:01:47]} 24. Qg4 {[%emt 0:04:46]} Ne5 {[%emt 0:04:09]} 25. Qe2 {[%emt 0:03:44]} Nc4 {[%emt 0:01:26]} 1/2-1/2

[Event "80th ARM-ch 1st League 2019"]
[Site "Yerevan"]
[Date "2019.08.22"]
[Round "5.5"]
[White "Torosyan, Norayr"]
[Black "Davtyan, Artur"]
[Result "1-0"]
[ECO "C45"]
[WhiteElo "2365"]
[BlackElo "2440"]
[Annotator "NA"]
[PlyCount "51"]
[EventDate "2019.08.18"]
[EventType "tourn"]
[EventCountry "ARM"]
[SourceTitle "playchess.com"]
[Source "ChessBase"]
[SourceQuality "1"]
[TimeControl "40/5400+30:1800+30"]

1. e4 {[%emt 0:00:00]} e5 {[%emt 0:05:00]} 2. Nf3 {[%emt 0:00:00]} Nc6 {[%emt 0:00:09]} 3. d4 {[%emt 0:00:01]} exd4 {[%emt 0:00:17]} 4. Nxd4 {[%emt 0:00:05]} Bc5 {[%emt 0:00:03]} 5. Nb3 {[%emt 0:00:09]} Bb6 {[%emt 0:00:06]} 6. Nc3 {[%emt 0:00:05]} Nf6 {[%emt 0:00:40]} 7. Qe2 {[%emt 0:00:29]} O-O {[%emt 0:00:56]} 8. Bg5 {[%emt 0:00:05]} Nd4 {[%emt 0:00:07]} 9. Qd2 {[%emt 0:00:14]} Nxb3 {[%emt 0:03:13]} 10. axb3 {[%emt 0:00:09]} Re8 {[%emt 0:04:10]} 11. f3 {[%emt 0:00:58]} h6 {[%emt 0:00:21]} 12. Bf4 {[%emt 0:06:29]} d5 {[%emt 0:28:36]} 13. O-O-O {[%emt 0:00:33]} d4 {[%emt 0:00:52]} 14. g4 {[%emt 0:17:52]} Bxg4 {[%emt 0:13:58]} 15. Qg2 {[%emt 0:04:26]} Bh5 {[%emt 0:12:29]} 16. Bxh6 {[%emt 0:03:14]} Bg6 {[%emt 0:00:37]} 17. Bc4 {[%emt 0:05:52]} Kf8 {[%emt 0:00:29]} 18. Bxf7 {[%emt 0:15:48]} Kxf7 {[%emt 0:00:04]} 19. Rhg1 {[%emt 0:00:04]} gxh6 {[%emt 0:00:12]} 20. Qxg6+ {[%emt 0:00:05]} Ke6 {[%emt 0:03:39]} 21. Qf5+ {[%emt 0:04:54]} Kf7 {[%emt 0:03:14]} 22. Nd5 {[%emt 0:03:37]} Re6 {[%emt 0:05:23]} 23. Qg6+ {[%emt 0:00:41]} Kf8 {[%emt 0:00:00]} 24. Qxh6+ {[%emt 0:01:51]} Ke8 {[%emt 0:00:10]} 25. Rg8+ {[%emt 0:00:10]} Nxg8 {[%emt 0:01:07]} 26. Qxe6+ {[%emt 0:00:04]} 1-0

[Event "80th ARM-ch 1st League 2019"]
[Site "Yerevan"]
[Date "2019.08.22"]
[Round "5.6"]
[White "Baghdasaryan, Vahe"]
[Black "Shahinyan, David"]
[Result "1-0"]
[ECO "C12"]
[WhiteElo "2373"]
[BlackElo "2452"]
[Annotator "ChessBase"]
[PlyCount "59"]
[EventDate "2019.08.18"]
[EventType "tourn"]
[EventCountry "ARM"]
[SourceTitle "playchess.com"]
[Source "ChessBase"]
[SourceQuality "1"]
[TimeControl "40/5400+30:1800+30"]

1. e4 {[%emt 0:00:05]} e6 {[%emt 0:00:01]} 2. d4 {[%emt 0:00:18]} d5 {[%emt 0:00:06]} 3. Nc3 {[%emt 0:00:06]} Nf6 {[%emt 0:01:07]} 4. Bg5 {[%emt 0:00:26]} Bb4 {[%emt 0:00:31]} 5. e5 {[%emt 0:04:09]} h6 {[%emt 0:00:14]} 6. exf6 {[%emt 0:00:56]} hxg5 {[%emt 0:00:13]} 7. fxg7 {[%emt 0:00:05]} Rg8 {[%emt 0:00:10]} 8. h4 {[%emt 0:00:53]} gxh4 {[%emt 0:01:52]} 9. Nf3 {[%emt 0:00:40]} Qf6 {[%emt 0:01:27]} 10. Qd2 {[%emt 0:07:30]} Qxg7 {[%emt 0:03:19]} 11. Rxh4 {[%emt 0:04:11]} Nd7 {[%emt 0:03:00]} 12. a3 {[%emt 0:09:40]} Be7 {[%emt 0:05:47]} 13. Nb5 {[%emt 0:07:37]} Kd8 {[%emt 0:23:30]} 14. Qf4 {[%emt 0:07:49]} e5 {[%emt 0:14:27]} 15. dxe5 {[%emt 0:04:12]} Bxh4 {[%emt 0:00:33]} 16. Qxh4+ {[%emt 0:00:13]} f6 {[%emt 0:00:04]} 17. O-O-O {[%emt 0:05:25]} Qh8 {[%emt 0:12:54]} 18. Qb4 {[%emt 0:11:25]} Qh6+ {[%emt 0:09:41]} 19. Kb1 {[%emt 0:00:30]} Qf8 {[%emt 0:00:10]} 20. Qc3 {[%emt 0:14:05]} c6 {[%emt 0:04:42]} 21. Nbd4 {[%emt 0:00:38]} Qe8 {[%emt 0:05:22]} 22. e6 {[%emt 0:05:09]} Ne5 {[%emt 0:00:01]} 23. Re1 {[%emt 0:00:32]} Ng6 {[%emt 0:06:13]} 24. Nf5 {[%emt 0:00:26]} Kc7 {[%emt 0:01:51]} 25. Qxf6 {[%emt 0:03:44]} a5 {[%emt 0:02:45]} 26. Bd3 {[%emt 0:00:38]} Nf8 {[%emt 0:01:18]} 27. Ng7 {[%emt 0:02:41]} Rxg7 {[%emt 0:00:26]} 28. Qxg7+ {[%emt 0:00:05]} Kb6 {[%emt 0:00:00]} 29. e7 {[%emt 0:00:48]} Ne6 {[%emt 0:00:02]} 30. Qf6 {[%emt 0:00:21]} 1-0

[Event "80th ARM-ch 1st League 2019"]
[Site "Yerevan"]
[Date "2019.08.22"]
[Round "5.7"]
[White "Gevorgyan, Albert"]
[Black "Harutyunian, Tigran K."]
[Result "0-1"]
[ECO "A05"]
[WhiteElo "2175"]
[BlackElo "2555"]
[Annotator "ChessBase"]
[PlyCount "66"]
[EventDate "2019.08.18"]
[EventType "tourn"]
[EventCountry "ARM"]
[SourceTitle "playchess.com"]
[Source "ChessBase"]
[SourceQuality "1"]
[TimeControl "40/5400+30:1800+30"]

1. Nf3 {[%emt 0:00:00]} Nf6 {[%emt 0:00:00]} 2. c4 {[%emt 0:00:08]} g6 {[%emt 0:00:26]} 3. Nc3 {[%emt 0:00:40]} Bg7 {[%emt 0:00:12]} 4. e4 {[%emt 0:00:39]} e5 {[%emt 0:00:17]} 5. d4 {[%emt 0:12:15]} exd4 {[%emt 0:00:36]} 6. Nxd4 {[%emt 0:00:08]} O-O {[%emt 0:00:16]} 7. Be2 {[%emt 0:01:17]} Re8 {[%emt 0:01:22]} 8. f3 {[%emt 0:00:48]} c6 {[%emt 0:01:15]} 9. Nb3 {[%emt 0:29:51]} a5 {[%emt 0:04:27]} 10. a4 {[%emt 0:04:45]} d5 {[%emt 0:15:40]} 11. exd5 {[%emt 0:01:34]} cxd5 {[%emt 0:00:44]} 12. O-O {[%emt 0:01:27]} d4 {[%emt 0:11:37]} 13. Nxd4 {[%emt 0:19:24]} Qb6 {[%emt 0:02:00]} 14. Kh1 {[%emt 0:02:54]} Nc6 {[%emt 0:02:48]} 15. Ndb5 {[%emt 0:02:49]} Bf5 {[%emt 0:01:35]} 16. Bf4 {[%emt 0:03:08]} Rad8 {[%emt 0:03:51]} 17. Bd6 {[%emt 0:09:06]} Qe3 {[%emt 0:02:41]} 18. c5 {[%emt 0:02:50]} b6 {[%emt 0:04:30]} 19. Nc7 {[%emt 0:01:48]} bxc5 {[%emt 0:01:00]} 20. Bb5 {[%emt 0:00:15]} Re6 {[%emt 0:03:45]} 21. Bxc5 {[%emt 0:02:21]} Qxc5 {[%emt 0:01:50]} 22. Nxe6 {[%emt 0:00:14]} Bxe6 {[%emt 0:00:12]} 23. Qe2 {[%emt 0:00:57]} Bb3 {[%emt 0:06:50]} 24. Rac1 {[%emt 0:01:01]} Nd4 {[%emt 0:00:20]} 25. Qe3 {[%emt 0:00:18]} Qb4 {[%emt 0:00:27]} 26. Qf4 {[%emt 0:01:32]} Nxb5 {[%emt 0:00:40]} 27. Qxb4 {[%emt 0:00:11]} axb4 {[%emt 0:00:06]} 28. Nxb5 {[%emt 0:00:06]} Bxa4 {[%emt 0:00:09]} 29. Nc7 {[%emt 0:00:28]} Ne8 {[%emt 0:01:13]} 30. Nxe8 {[%emt 0:01:02]} Rxe8 {[%emt 0:00:08]} 31. b3 {[%emt 0:00:57]} Bxb3 {[%emt 0:00:12]} 32. Rb1 {[%emt 0:00:04]} Bc4 {[%emt 0:00:37]} 33. Rfc1 {[%emt 0:00:05]} Bc3 {[%emt 0:00:06]} 0-1

[Event "80th ARM-ch 1st League 2019"]
[Site "Yerevan"]
[Date "2019.08.23"]
[Round "6.1"]
[White "Shahinyan, David"]
[Black "Khojayan, Vardan"]
[Result "0-1"]
[ECO "B20"]
[WhiteElo "2452"]
[BlackElo "2236"]
[Annotator "ChessBase"]
[PlyCount "146"]
[EventDate "2019.08.18"]
[EventType "tourn"]
[EventCountry "ARM"]
[SourceTitle "playchess.com"]
[Source "ChessBase"]
[SourceQuality "1"]
[TimeControl "40/5400+30:1800+30"]

1. e4 {[%emt 0:00:00]} c5 {[%emt 0:01:59]} 2. d3 {[%emt 0:00:00]} Nc6 {[%emt 0:00:21]} 3. g3 {[%emt 0:00:12]} d5 {[%emt 0:06:02]} 4. Nd2 {[%emt 0:00:46]} Nf6 {[%emt 0:02:09]} 5. Bg2 {[%emt 0:00:11]} dxe4 {[%emt 0:05:23]} 6. dxe4 {[%emt 0:00:24]} g6 {[%emt 0:01:36]} 7. Ngf3 {[%emt 0:00:45]} Bg7 {[%emt 0:00:23]} 8. O-O {[%emt 0:00:23]} O-O {[%emt 0:00:35]} 9. c3 {[%emt 0:01:34]} h6 {[%emt 0:08:23]} 10. Qe2 {[%emt 0:02:35]} Be6 {[%emt 0:11:24]} 11. Nc4 {[%emt 0:02:40]} Qc8 {[%emt 0:03:40]} 12. Rd1 {[%emt 0:03:03]} Bh3 {[%emt 0:04:22]} 13. Bh1 {[%emt 0:08:34]} Qe6 {[%emt 0:00:43]} 14. Ne1 {[%emt 0:06:03]} Rfd8 {[%emt 0:08:07]} 15. Ne3 {[%emt 0:07:02]} Rxd1 {[%emt 0:03:52]} 16. Nxd1 {[%emt 0:01:35]} Rd8 {[%emt 0:06:20]} 17. f3 {[%emt 0:00:14]} Qc8 {[%emt 0:06:19]} 18. Nf2 {[%emt 0:02:04]} Be6 {[%emt 0:00:11]} 19. Be3 {[%emt 0:04:21]} Ne5 {[%emt 0:02:46]} 20. Rd1 {[%emt 0:00:53]} Rxd1 {[%emt 0:04:30]} 21. Qxd1 {[%emt 0:00:23]} b6 {[%emt 0:03:18]} 22. b3 {[%emt 0:03:04]} Kh7 {[%emt 0:00:48]} 23. Bg2 {[%emt 0:00:13]} Qa6 {[%emt 0:00:44]} 24. Qc2 {[%emt 0:05:03]} c4 {[%emt 0:04:22]} 25. b4 {[%emt 0:05:53]} Nd3 {[%emt 0:02:20]} 26. Bd2 {[%emt 0:00:27]} Ne8 {[%emt 0:01:38]} 27. f4 {[%emt 0:03:47]} Nxf2 {[%emt 0:01:50]} 28. Kxf2 {[%emt 0:00:01]} Qa3 {[%emt 0:00:37]} 29. Nf3 {[%emt 0:04:43]} Bd7 {[%emt 0:01:20]} 30. Nd4 {[%emt 0:03:22]} Ba4 {[%emt 0:03:30]} 31. Qb1 {[%emt 0:01:59]} Bxd4+ {[%emt 0:00:37]} 32. cxd4 {[%emt 0:00:03]} Nd6 {[%emt 0:00:13]} 33. Bf1 {[%emt 0:21:45]} c3 {[%emt 0:00:51]} 34. Bc1 {[%emt 0:00:07]} Nxe4+ {[%emt 0:02:01]} 35. Kg2 {[%emt 0:02:56]} c2 {[%emt 0:02:52]} 36. Qxc2 {[%emt 0:00:01]} Qxg3+ {[%emt 0:00:19]} 37. hxg3 {[%emt 0:00:03]} Bxc2 {[%emt 0:00:03]} 38. Kf3 {[%emt 0:02:05]} Nd6 {[%emt 0:00:27]} 39. Bb2 {[%emt 0:02:01]} Be4+ {[%emt 0:00:19]} 40. Ke3 {[%emt 0:00:00]} Bd5 {[%emt 0:00:00]} 41. a4 {[%emt 0:00:21]} h5 {[%emt 0:03:25]} 42. Bd3 {[%emt 0:01:58]} Kg7 {[%emt 0:01:35]} 43. Bc3 {[%emt 0:01:12]} Kf6 {[%emt 0:00:31]} 44. b5 {[%emt 0:02:12]} Ke6 {[%emt 0:00:42]} 45. Bb4 {[%emt 0:00:12]} Ne8 {[%emt 0:00:37]} 46. Bf1 {[%emt 0:00:19]} Nc7 {[%emt 0:01:26]} 47. Bh3+ {[%emt 0:00:29]} f5 {[%emt 0:00:46]} 48. Kd2 {[%emt 0:03:14]} Bb3 {[%emt 0:01:33]} 49. a5 {[%emt 0:00:01]} Nxb5 {[%emt 0:01:07]} 50. axb6 {[%emt 0:00:46]} axb6 {[%emt 0:00:03]} 51. Bf1 {[%emt 0:00:25]} Nc7 {[%emt 0:00:59]} 52. Bg2 {[%emt 0:00:22]} Bd5 {[%emt 0:00:53]} 53. Bf1 {[%emt 0:00:02]} Ne8 {[%emt 0:02:36]} 54. Ba6 {[%emt 0:04:30]} Nf6 {[%emt 0:00:30]} 55. Bc8+ {[%emt 0:00:26]} Kf7 {[%emt 0:00:01]} 56. Kc2 {[%emt 0:00:19]} Ne4 {[%emt 0:00:37]} 57. Be1 {[%emt 0:00:00]} Ke8 {[%emt 0:02:11]} 58. Ba6 {[%emt 0:00:08]} Kd7 {[%emt 0:00:18]} 59. Bd3 {[%emt 0:00:32]} Kc6 {[%emt 0:00:33]} 60. Bxe4 {[%emt 0:09:10]} fxe4 {[%emt 0:00:40]} 61. Bb4 {[%emt 0:00:01]} Bc4 {[%emt 0:01:18]} 62. Kd2 {[%emt 0:11:30]} e6 {[%emt 0:00:27]} 63. Ke3 {[%emt 0:05:04]} Bd3 {[%emt 0:00:55]} 64. Be7 {[%emt 0:01:14]} Kd5 {[%emt 0:00:17]} 65. Bf8 {[%emt 0:00:46]} Kc4 {[%emt 0:00:08]} 66. Bg7 {[%emt 0:00:44]} b5 {[%emt 0:00:17]} 67. Kd2 {[%emt 0:00:05]} Bb1 {[%emt 0:01:18]} 68. Bf6 {[%emt 0:01:01]} b4 {[%emt 0:00:32]} 69. Bg7 {[%emt 0:02:37]} Kb3 {[%emt 0:01:02]} 70. Bf8 {[%emt 0:00:24]} e3+ {[%emt 0:02:20]} 71. Kxe3 {[%emt 0:00:19]} Kc3 {[%emt 0:00:04]} 72. Bg7 {[%emt 0:00:08]} Kc2 {[%emt 0:00:32]} 73. Ke4 {[%emt 0:00:20]} b3 {[%emt 0:01:32]} 0-1